[Event "Chessity Nationale Pupillendag 2019 - Groep H"]
[Site "Meppel, Netherlands"]
[Date "2019.06.29"]
[Round "4.2"]
[White "Leenen, Boyd"]
[Black "Ritzerveld, Noah"]
[Result "1/2-1/2"]
[TimeControl "15 min + 10 sec"]
[WhiteElo "495"]
[BlackElo "615"]

1. e4 {[%clk 00:15:19]} e5 {[%clk 00:15:19]} {[%emt 00:00:02]} 2. Nf3 {[%clk
00:15:28]} Nc6 {[%clk 00:15:28]} {[%emt 00:00:01]} 3. Bc4 {[%clk 00:15:37]}
{[%emt 00:00:01]} Nf6 {[%clk 00:15:36]} {[%emt 00:00:02]} 4. Ng5 {[%clk
00:15:46]} {[%emt 00:00:02]} d5 {[%clk 00:15:44]} {[%emt 00:00:01]} 5. exd5
{[%clk 00:15:55]} {[%emt 00:00:01]} Na5 {[%clk 00:15:53]} {[%emt 00:00:02]} 6.
d3 {[%clk 00:16:01]} {[%emt 00:00:03]} Nxc4 {[%clk 00:15:59]} {[%emt 00:00:04]}
7. dxc4 {[%clk 00:16:09]} {[%emt 00:00:01]} h6 {[%clk 00:16:05]} {[%emt
00:00:04]} 8. Nf3 {[%clk 00:16:18]} {[%emt 00:00:01]} e4 {[%clk 00:16:05]}
{[%emt 00:00:10]} 9. Nfd2 {[%clk 00:16:22]} {[%emt 00:00:06]} Bc5 {[%clk
00:15:51]} {[%emt 00:00:24]} 10. Nc3 {[%clk 00:16:30]} {[%emt 00:00:02]} Bg4
{[%clk 00:15:47]} {[%emt 00:00:13]} 11. f3 {[%clk 00:16:33]} {[%emt 00:00:07]}
exf3 {[%clk 00:15:54]} {[%emt 00:00:03]} 12. gxf3 {[%clk 00:16:38]} {[%emt
00:00:05]} Bh3 {[%clk 00:15:47]} {[%emt 00:00:16]} 13. Qe2+ {[%clk 00:16:40]}
{[%emt 00:00:09]} Qe7 {[%clk 00:15:35]} {[%emt 00:00:22]} 14. Qxe7+ {[%clk
00:16:44]} {[%emt 00:00:05]} Bxe7 {[%clk 00:15:43]} {[%emt 00:00:03]} 15. Nde4
{[%clk 00:16:50]} {[%emt 00:00:04]} Nxe4 {[%clk 00:15:49]} {[%emt 00:00:04]} 16.
Nxe4 {[%clk 00:16:58]} {[%emt 00:00:03]} f5 {[%clk 00:15:47]} {[%emt 00:00:12]}
17. Ng3 {[%clk 00:17:06]} {[%emt 00:00:02]} Bc5 {[%clk 00:15:53]} {[%emt
00:00:04]} 18. Bf4 {[%clk 00:17:11]} {[%emt 00:00:05]} Bg2 {[%clk 00:15:51]}
{[%emt 00:00:12]} 19. Rg1 {[%clk 00:17:18]} {[%emt 00:00:02]} Bxg1 {[%clk
00:15:59]} {[%emt 00:00:04]} 20. Bxc7 {[%clk 00:17:22]} {[%emt 00:00:05]} O-O
{[%clk 00:16:00]} {[%emt 00:00:08]} 21. d6 {[%clk 00:17:22]} {[%emt 00:00:10]}
Rfe8+ {[%clk 00:16:07]} {[%emt 00:00:03]} 22. Kd2 {[%clk 00:17:27]} {[%emt
00:00:05]} Be3+ {[%clk 00:15:51]} {[%emt 00:00:25]} 23. Kd3 {[%clk 00:17:31]}
{[%emt 00:00:06]} Bf4 {[%clk 00:15:00]} {[%emt 00:00:55]} 24. d7 {[%clk
00:17:39]} {[%emt 00:00:08]} Bxf3 {[%clk 00:14:57]} {[%emt 00:00:13]} 25.
dxe8=Q+ Rxe8 26. Bxf4 {[%clk 00:17:41]} {[%emt 00:00:04]} Rd8+ {[%clk
00:14:51]} {[%emt 00:00:16]} 27. Ke3 {[%clk 00:17:46]} {[%emt 00:00:04]} Bg4
{[%clk 00:14:52]} {[%emt 00:00:07]} 28. Rh1 {[%clk 00:17:53]} {[%emt 00:00:05]}
Re8+ {[%clk 00:14:56]} {[%emt 00:00:06]} 29. Kd3 {[%clk 00:18:01]} {[%emt
00:00:02]} Bf3 {[%clk 00:15:02]} {[%emt 00:00:05]} 30. Rf1 {[%clk 00:18:01]}
{[%emt 00:00:08]} Bg4 {[%clk 00:15:07]} {[%emt 00:00:05]} 31. b3 {[%clk
00:18:05]} {[%emt 00:00:06]} h5 {[%clk 00:15:15]} {[%emt 00:00:03]} 32. c5
{[%clk 00:18:12]} {[%emt 00:00:03]} h4 {[%emt 00:00:10]} 33. Kc3 {[%clk
00:18:12]} hxg3 {[%clk 00:15:30]} {[%emt 00:00:05]} 34. hxg3 {[%clk 00:18:19]}
{[%emt 00:00:02]} Be2 {[%clk 00:15:20]} {[%emt 00:00:20]} 35. Re1 {[%clk
00:18:27]} {[%emt 00:00:02]} Kf7 {[%clk 00:15:09]} {[%emt 00:00:21]} 36. Kd2
{[%clk 00:18:33]} {[%emt 00:00:05]} Bg4 {[%clk 00:15:07]} {[%emt 00:00:08]} 37.
Rxe8 {[%clk 00:18:41]} {[%emt 00:00:06]} Kxe8 {[%clk 00:15:15]} {[%emt
00:00:02]} 38. c4 {[%clk 00:18:49]} {[%emt 00:00:02]} Ke7 {[%clk 00:15:22]}
{[%emt 00:00:03]} 39. Ke3 {[%clk 00:18:57]} {[%emt 00:00:02]} Kf6 {[%clk
00:15:26]} {[%emt 00:00:07]} 40. Kd4 {[%clk 00:19:05]} {[%emt 00:00:02]} g5
{[%clk 00:15:34]} {[%emt 00:00:01]} 41. Be5+ {[%clk 00:19:10]} {[%emt
00:00:06]} Ke6 {[%clk 00:15:35]} {[%emt 00:00:09]} 42. a4 {[%emt 00:00:23]} Bf3
{[%clk 00:15:21]} 43. b4 {[%clk 00:19:25]} {[%emt 00:00:05]} Bc6 {[%clk
00:15:15]} {[%emt 00:00:15]} 44. b5 {[%clk 00:19:33]} {[%emt 00:00:03]} Bd7
{[%clk 00:15:23]} {[%emt 00:00:02]} 45. a5 {[%clk 00:19:40]} {[%emt 00:00:04]}
g4 {[%clk 00:15:03]} {[%emt 00:00:29]} 46. b6 {[%clk 00:19:42]} {[%emt
00:00:08]} axb6 {[%clk 00:15:08]} {[%emt 00:00:05]} 47. axb6 {[%clk 00:19:50]}
{[%emt 00:00:02]} Bc6 {[%clk 00:15:05]} {[%emt 00:00:11]} 48. Bd6 {[%clk
00:19:55]} {[%emt 00:00:05]} Kf6 {[%clk 00:14:55]} {[%emt 00:00:18]} 49. Bc7
{[%clk 00:20:00]} {[%emt 00:00:08]} Ke6 {[%clk 00:15:01]} {[%emt 00:00:04]} 50.
Bd8 {[%clk 00:19:57]} {[%emt 00:00:11]} f4 {[%clk 00:15:03]} {[%emt 00:00:10]}
51. gxf4 {[%clk 00:20:05]} {[%emt 00:00:02]} g3 {[%clk 00:15:12]} {[%emt
00:00:02]} 52. Ke3 {[%clk 00:20:09]} {[%emt 00:00:04]} Kf5 {[%clk 00:15:13]}
{[%emt 00:00:10]} 53. Ke2 {[%clk 00:20:15]} {[%emt 00:00:04]} Kg4 {[%clk
00:15:21]} {[%emt 00:00:02]} 54. Kf1 {[%clk 00:20:19]} {[%emt 00:00:06]} Kh3
{[%clk 00:15:27]} {[%emt 00:00:04]} 55. Kg1 {[%clk 00:20:27]} {[%emt 00:00:02]}
Kg4 {[%clk 00:15:16]} {[%emt 00:00:21]} 56. Bc7 {[%clk 00:20:35]} {[%emt
00:00:03]} Kf3 {[%clk 00:15:00]} {[%emt 00:00:23]} 57. f5 {[%clk 00:20:43]}
{[%emt 00:00:05]} Be8 {[%clk 00:14:25]} {[%emt 00:00:44]} 58. Bd8 {[%clk
00:20:34]} {[%emt 00:00:15]} Kf4 {[%clk 00:14:09]} {[%emt 00:00:30]} 59. f6
{[%clk 00:20:42]} {[%emt 00:00:03]} Kf5 {[%clk 00:14:10]} {[%emt 00:00:09]} 60.
Kg2 {[%clk 00:20:49]} {[%emt 00:00:03]} Ke6 {[%clk 00:13:57]} {[%emt 00:00:23]}
61. Kxg3 {[%clk 00:20:55]} {[%emt 00:00:05]} Kd7 {[%clk 00:13:56]} {[%emt
00:00:11]} 62. Be7 {[%clk 00:21:03]} {[%emt 00:00:02]} Ke6 {[%clk 00:13:58]}
{[%emt 00:00:08]} 63. Kf4 {[%emt 00:00:25]} Bd7 {[%clk 00:13:34]} {[%emt
00:00:11]} 64. Kg5 {[%clk 00:21:17]} {[%emt 00:00:03]} Be8 {[%clk 00:13:43]}
{[%emt 00:00:02]} 65. Kh6 {[%clk 00:21:21]} {[%emt 00:00:06]} Kf7 {[%clk
00:13:25]} {[%emt 00:00:24]} 66. Kg5 {[%clk 00:21:29]} {[%emt 00:00:05]} Bc6
{[%clk 00:13:12]} {[%emt 00:00:21]} 67. Kf5 {[%clk 00:21:36]} {[%emt 00:00:05]}
Bd7+ {[%clk 00:13:09]} {[%emt 00:00:12]} 68. Ke5 {[%clk 00:21:45]} {[%emt
00:00:02]} Bc6 {[%clk 00:13:17]} {[%emt 00:00:01]} 69. Kd6 {[%emt 00:00:27]}
Ba4 {[%clk 00:12:59]} {[%emt 00:00:01]} 70. Kc7 {[%clk 00:22:01]} {[%emt
00:00:04]} Bc6 {[%clk 00:13:07]} {[%emt 00:00:02]} 71. Kd6 {[%clk 00:21:59]}
{[%emt 00:00:12]} Ba4 {[%clk 00:13:12]} {[%emt 00:00:05]} 72. Ke5 {[%clk
00:22:07]} {[%emt 00:00:02]} Bc6 {[%clk 00:13:18]} {[%emt 00:00:02]} 73. Kf5
{[%clk 00:22:16]} {[%emt 00:00:03]} Bd7+ {[%clk 00:13:26]} {[%emt 00:00:02]} 74.
Kg5 {[%clk 00:22:25]} Bc6 {[%clk 00:13:34]} {[%emt 00:00:02]} 75. Kh6 {[%clk
00:22:33]} {[%emt 00:00:02]} Bd7 {[%clk 00:13:43]} {[%emt 00:00:01]} 76. Kh7
{[%clk 00:22:42]} {[%emt 00:00:01]} Bc6 {[%clk 00:13:51]} {[%emt 00:00:02]} 77.
Kh8 {[%clk 00:22:48]} {[%emt 00:00:05]} Bd7 {[%clk 00:14:00]} {[%emt 00:00:01]}
78. Kh7 {[%clk 00:22:56]} {[%emt 00:00:02]} Bc6 {[%clk 00:14:08]} {[%emt
00:00:01]} 79. Bd6 {[%clk 00:23:01]} {[%emt 00:00:05]} Kxf6 {[%clk 00:14:07]}
{[%emt 00:00:11]} 80. Kg8 {[%clk 00:23:09]} {[%emt 00:00:01]} Ke6 {[%clk
00:14:14]} {[%emt 00:00:03]} 81. Kf8 {[%clk 00:23:18]} {[%emt 00:00:01]} Kd7
{[%clk 00:14:22]} {[%emt 00:00:02]} 82. Kf7 {[%clk 00:23:27]} {[%emt 00:00:01]}
Ba4 {[%clk 00:14:22]} {[%emt 00:00:10]} 83. Kf6 {[%clk 00:23:35]} {[%emt
00:00:01]} Bc6 {[%clk 00:14:31]} {[%emt 00:00:02]} 84. Ke5 {[%clk 00:23:44]}
{[%emt 00:00:01]} Ba4 {[%clk 00:14:39]} {[%emt 00:00:01]} 85. Kd4 {[%clk
00:23:54]} Bc6 {[%clk 00:14:46]} {[%emt 00:00:04]} 86. Kc3 {[%clk 00:24:03]}
Ba4 {[%clk 00:14:48]} {[%emt 00:00:10]} 87. Kb4 {[%clk 00:24:12]} {[%emt
00:00:01]} Bc6 {[%clk 00:14:56]} {[%emt 00:00:01]} 88. Ka5 {[%clk 00:24:19]}
{[%emt 00:00:03]} Ke6 {[%clk 00:14:58]} {[%emt 00:00:04]} 89. Kb4 {[%clk
00:24:28]} {[%emt 00:00:06]} Kd7 {[%clk 00:15:06]} {[%emt 00:00:01]} 90. Ka5
{[%clk 00:24:36]} {[%emt 00:00:01]} Ke6 {[%clk 00:15:12]} {[%emt 00:00:04]} 91.
Bf8 {[%clk 00:24:44]} {[%emt 00:00:02]} Kd7 {[%clk 00:15:19]} {[%emt 00:00:03]}
92. Kb4 {[%clk 00:24:52]} {[%emt 00:00:02]} Ke6 {[%emt 00:00:08]} 93. Kc3
{[%clk 00:24:57]} Kd7 {[%clk 00:15:31]} {[%emt 00:00:04]} 94. Kd4 {[%clk
00:25:06]} {[%emt 00:00:02]} Ba4 {[%clk 00:15:38]} {[%emt 00:00:03]} 95. Ke5
{[%clk 00:25:14]} {[%emt 00:00:01]} Bc6 {[%clk 00:15:47]} {[%emt 00:00:01]} 96.
Bd6 {[%clk 00:25:23]} {[%emt 00:00:02]} Ba4 {[%clk 00:15:53]} {[%emt 00:00:04]}
97. Bc7 {[%clk 00:25:29]} {[%emt 00:00:04]} Bc6 {[%clk 00:16:00]} {[%emt
00:00:03]} 98. Kf6 {[%clk 00:25:37]} {[%emt 00:00:02]} Ba4 {[%clk 00:16:07]}
{[%emt 00:00:03]} 99. Kf7 {[%clk 00:25:45]} {[%emt 00:00:01]} Bc6 {[%clk
00:16:15]} {[%emt 00:00:02]} 100. Kf8 {[%clk 00:25:54]} {[%emt 00:00:01]} Ba4
{[%clk 00:16:23]} {[%emt 00:00:02]} 101. Bh2 {[%clk 00:26:00]} {[%emt
00:00:03]} Bc6 {[%clk 00:16:31]} {[%emt 00:00:02]} 102. Be5 {[%clk 00:26:07]}
{[%emt 00:00:04]} Ba4 {[%clk 00:16:39]} {[%emt 00:00:02]} 103. Bc3 {[%clk
00:26:14]} {[%emt 00:00:02]} Bc6 {[%clk 00:16:47]} {[%emt 00:00:02]} 104. Bb4
{[%clk 00:26:23]} Ba4 {[%clk 00:16:56]} {[%emt 00:00:01]} 105. Bd2 {[%clk
00:26:27]} {[%emt 00:00:05]} Bc6 {[%clk 00:17:04]} {[%emt 00:00:02]} 106. Bh6
{[%clk 00:26:36]} {[%emt 00:00:01]} Ba4 {[%clk 00:17:13]} {[%emt 00:00:02]} 107.
Bg5 {[%clk 00:26:44]} {[%emt 00:00:02]} Bc6 {[%clk 00:17:22]} {[%emt 00:00:02]}
108. Bf6 {[%clk 00:26:50]} {[%emt 00:00:01]} Ba4 {[%clk 00:17:28]} {[%emt
00:00:06]} 109. Be7 {[%clk 00:26:58]} {[%emt 00:00:01]} Bc6 {[%clk 00:17:32]}
{[%emt 00:00:06]} 110. Bd6 {[%clk 00:27:02]} {[%emt 00:00:06]} Ba4 {[%clk
00:17:40]} {[%emt 00:00:03]} 111. Bc7 {[%clk 00:27:10]} {[%emt 00:00:02]} Bc6
{[%clk 00:17:49]} {[%emt 00:00:01]} 112. Bb8 {[%clk 00:27:19]} {[%emt
00:00:02]} Ba4 {[%clk 00:17:57]} {[%emt 00:00:02]} 113. Ba7 {[%clk 00:27:27]}
{[%emt 00:00:02]} Bc6 {[%clk 00:18:05]} {[%emt 00:00:02]} 114. Kf7 {[%clk
00:27:35]} {[%emt 00:00:01]} Ba4 {[%clk 00:18:10]} {[%emt 00:00:05]} 115. Kf6
{[%clk 00:27:43]} {[%emt 00:00:02]} Bc6 {[%clk 00:18:19]} {[%emt 00:00:01]} 116.
Ke5 {[%clk 00:27:52]} {[%emt 00:00:01]} Ba4 {[%clk 00:18:26]} {[%emt 00:00:02]}
117. Kd4 {[%clk 00:28:00]} {[%emt 00:00:02]} Bc6 {[%clk 00:18:35]} 118. Kc3
{[%clk 00:28:09]} {[%emt 00:00:01]} Ke6 {[%clk 00:18:43]} {[%emt 00:00:03]} 119.
Kb4 {[%clk 00:28:17]} {[%emt 00:00:02]} Kd7 {[%clk 00:18:51]} {[%emt 00:00:02]}
120. Ka5 {[%clk 00:28:25]} {[%emt 00:00:01]} Ke6 {[%clk 00:18:59]} {[%emt
00:00:02]} 121. Bb8 {[%clk 00:28:34]} {[%emt 00:00:02]} Kd7 {[%clk 00:19:07]}
{[%emt 00:00:02]} 122. Bd6 {[%emt 00:00:13]} 1/2-1/2

[Event "Chessity Nationale Pupillendag 2019 - Groep H"]
[Site "Meppel, Netherlands"]
[Date "2019.06.29"]
[Round "5.1"]
[White "Rudolph, Simon"]
[Black "Leenen, Boyd"]
[Result "0-1"]
[TimeControl "15 min + 10 sec"]
[WhiteElo "439"]
[BlackElo "495"]

1. c4 {[%clk 00:15:18]} {[%emt 00:00:02]} e5 {[%clk 00:15:18]} {[%emt
00:00:02]} 2. Nf3 {[%clk 00:15:22]} {[%emt 00:00:05]} d6 {[%clk 00:15:27]}
{[%emt 00:00:02]} 3. g3 {[%clk 00:15:28]} {[%emt 00:00:04]} Nf6 {[%clk
00:15:35]} {[%emt 00:00:02]} 4. Bg2 {[%clk 00:15:36]} {[%emt 00:00:02]} Nc6
{[%clk 00:15:44]} {[%emt 00:00:01]} 5. O-O {[%clk 00:15:41]} {[%emt 00:00:04]}
Be6 {[%clk 00:15:53]} 6. Nc3 {[%clk 00:15:26]} {[%emt 00:00:25]} Bxc4 {[%clk
00:15:59]} {[%emt 00:00:03]} 7. b3 {[%clk 00:15:35]} {[%emt 00:00:03]} Be6
{[%clk 00:16:04]} {[%emt 00:00:05]} 8. d3 {[%clk 00:15:30]} {[%emt 00:00:14]}
d5 {[%clk 00:16:08]} {[%emt 00:00:06]} 9. Bb2 {[%clk 00:15:21]} {[%emt
00:00:21]} d4 {[%clk 00:16:14]} {[%emt 00:00:03]} 10. Nb1 {[%clk 00:15:23]}
{[%emt 00:00:09]} Bd6 {[%clk 00:16:21]} {[%emt 00:00:03]} 11. Qc1 {[%clk
00:15:20]} {[%emt 00:00:13]} Qd7 {[%clk 00:16:21]} {[%emt 00:00:10]} 12. Ba3
{[%clk 00:15:25]} {[%emt 00:00:05]} O-O {[%clk 00:16:23]} {[%emt 00:00:08]} 13.
Bxd6 {[%clk 00:15:27]} {[%emt 00:00:07]} Qxd6 {[%clk 00:16:28]} {[%emt
00:00:05]} 14. Nbd2 {[%clk 00:15:26]} {[%emt 00:00:11]} Rfd8 {[%clk 00:16:35]}
{[%emt 00:00:04]} 15. Ne4 {[%clk 00:15:34]} {[%emt 00:00:02]} Qe7 {[%clk
00:16:40]} {[%emt 00:00:05]} 16. Nxf6+ {[%clk 00:15:40]} {[%emt 00:00:04]} Qxf6
{[%clk 00:16:47]} {[%emt 00:00:03]} 17. Nd2 {[%clk 00:15:15]} {[%emt 00:00:36]}
Bf5 {[%clk 00:16:49]} {[%emt 00:00:07]} 18. Be4 {[%clk 00:15:19]} {[%emt
00:00:05]} Bxe4 {[%clk 00:16:55]} {[%emt 00:00:04]} 19. dxe4 {[%clk 00:15:26]}
{[%emt 00:00:02]} Qd6 {[%clk 00:17:01]} {[%emt 00:00:04]} 20. Nf3 {[%clk
00:15:13]} {[%emt 00:00:23]} d3 {[%clk 00:17:08]} {[%emt 00:00:03]} 21. exd3
{[%clk 00:15:21]} {[%emt 00:00:02]} Qxd3 {[%clk 00:17:15]} {[%emt 00:00:02]} 22.
Rd1 {[%clk 00:15:24]} {[%emt 00:00:08]} Qxf3 {[%clk 00:17:20]} {[%emt
00:00:04]} 23. Rxd8+ {[%clk 00:15:32]} {[%emt 00:00:03]} Rxd8 {[%clk 00:17:28]}
{[%emt 00:00:02]} 24. Qc2 {[%clk 00:15:07]} {[%emt 00:00:34]} Nd4 {[%clk
00:17:36]} {[%emt 00:00:03]} 25. Qxc7 {[%clk 00:15:10]} {[%emt 00:00:06]} Ne2+
{[%clk 00:17:42]} {[%emt 00:00:03]} 26. Kf1 {[%clk 00:15:11]} {[%emt 00:00:10]}
Rf8 {[%clk 00:17:49]} {[%emt 00:00:03]} 27. Rd1 {[%clk 00:14:52]} {[%emt
00:00:29]} Qxe4 {[%clk 00:17:47]} {[%emt 00:00:13]} 28. Qd8 {[%clk 00:14:59]}
{[%emt 00:00:02]} Qc2 {[%clk 00:17:49]} {[%emt 00:00:08]} 29. Rd7 {[%clk
00:14:32]} {[%emt 00:00:34]} Nd4 {[%clk 00:17:48]} {[%emt 00:00:14]} 30. Ke1
{[%clk 00:14:23]} {[%emt 00:00:21]} Qe2# {[%emt 00:00:03]} 0-1

[Event "Chessity Nationale Pupillendag 2019 - Groep H"]
[Site "Meppel, Netherlands"]
[Date "2019.06.29"]
[Round "5.2"]
[White "Ritzerveld, Noah"]
[Black "Thijssen, Freek"]
[Result "1-0"]
[TimeControl "15 min + 10 sec"]
[WhiteElo "615"]
[BlackElo "658"]

1. e4 {[%clk 00:15:19]} e5 {[%clk 00:15:19]} {[%emt 00:00:01]} 2. Nf3 {[%clk
00:15:28]} {[%emt 00:00:01]} Nc6 {[%clk 00:15:28]} {[%emt 00:00:01]} 3. Nc3
{[%clk 00:15:36]} {[%emt 00:00:02]} Bc5 {[%clk 00:15:37]} {[%emt 00:00:02]} 4.
Nxe5 {[%clk 00:15:44]} {[%emt 00:00:01]} Nxe5 {[%clk 00:15:42]} {[%emt
00:00:05]} 5. d4 {[%clk 00:15:53]} {[%emt 00:00:02]} Bb6 {[%clk 00:15:44]}
{[%emt 00:00:09]} 6. dxe5 {[%clk 00:16:00]} {[%emt 00:00:02]} d6 {[%clk
00:15:49]} {[%emt 00:00:05]} 7. exd6 {[%clk 00:16:07]} {[%emt 00:00:03]} cxd6
{[%clk 00:15:56]} {[%emt 00:00:03]} 8. Qf3 {[%clk 00:16:02]} {[%emt 00:00:15]}
Nf6 {[%clk 00:15:58]} {[%emt 00:00:08]} 9. Bg5 {[%clk 00:16:08]} {[%emt
00:00:04]} Bd4 {[%clk 00:15:54]} {[%emt 00:00:15]} 10. Bb5+ {[%clk 00:16:03]}
{[%emt 00:00:15]} Bd7 {[%clk 00:15:37]} {[%emt 00:00:25]} 11. Bxd7+ {[%clk
00:16:03]} {[%emt 00:00:10]} Qxd7 {[%clk 00:15:45]} {[%emt 00:00:03]} 12. O-O-O
{[%clk 00:15:39]} {[%emt 00:00:34]} Be5 {[%clk 00:15:37]} {[%emt 00:00:18]} 13.
Bf4 {[%clk 00:14:59]} {[%emt 00:00:49]} Bxf4+ {[%clk 00:15:23]} {[%emt
00:00:26]} 14. Qxf4 {[%clk 00:15:05]} {[%emt 00:00:03]} Rd8 {[%clk 00:15:20]}
{[%emt 00:00:13]} 15. Rhe1 {[%clk 00:14:38]} {[%emt 00:00:36]} Ng4 {[%clk
00:14:27]} {[%emt 00:01:02]} 16. h3 {[%clk 00:14:33]} {[%emt 00:00:17]} Ne5
{[%clk 00:14:34]} {[%emt 00:00:02]} 17. Qg5 {[%clk 00:13:52]} {[%emt 00:00:49]}
O-O {[%clk 00:14:33]} {[%emt 00:00:13]} 18. Nd5 {[%clk 00:13:46]} {[%emt
00:00:15]} f6 {[%emt 00:01:03]} 19. Qg3 {[%clk 00:13:31]} Ng6 {[%clk 00:13:31]}
{[%emt 00:00:43]} 20. f4 {[%clk 00:12:36]} {[%emt 00:01:04]} Rc8 {[%clk
00:13:03]} {[%emt 00:00:38]} 21. h4 {[%clk 00:12:13]} {[%emt 00:00:33]} Qc6
{[%clk 00:12:38]} {[%emt 00:00:36]} 22. c3 {[%clk 00:12:20]} {[%emt 00:00:03]}
f5 {[%clk 00:09:59]} {[%emt 00:02:49]} 23. h5 {[%clk 00:12:27]} {[%emt
00:00:04]} Rf7 {[%clk 00:09:12]} {[%emt 00:00:57]} 24. hxg6 {[%clk 00:12:30]}
{[%emt 00:00:06]} hxg6 {[%clk 00:09:21]} {[%emt 00:00:02]} 25. Qxg6 {[%clk
00:12:33]} {[%emt 00:00:07]} Qc4 {[%clk 00:08:43]} {[%emt 00:00:42]} 26. Kb1
{[%clk 00:12:34]} {[%emt 00:00:15]} Rc5 {[%emt 00:00:32]} 27. Ne3 {[%clk
00:12:17]} {[%emt 00:00:05]} Qb5 {[%clk 00:08:38]} {[%emt 00:00:11]} 28. exf5
{[%clk 00:12:14]} {[%emt 00:00:17]} Rxc3 {[%clk 00:08:31]} {[%emt 00:00:16]} 29.
Rxd6 {[%clk 00:12:05]} {[%emt 00:00:20]} Rc8 {[%clk 00:08:18]} {[%emt
00:00:23]} 30. Rc1 {[%clk 00:11:43]} {[%emt 00:00:21]} Re8 {[%clk 00:07:26]}
{[%emt 00:01:09]} 31. Nd5 {[%clk 00:11:34]} {[%emt 00:00:21]} Qd3+ {[%clk
00:07:20]} {[%emt 00:00:15]} 32. Ka1 {[%clk 00:11:34]} {[%emt 00:00:09]} Qd2
{[%clk 00:07:25]} {[%emt 00:00:08]} 33. Nf6+ {[%clk 00:11:32]} {[%emt
00:00:11]} Rxf6 {[%clk 00:07:33]} {[%emt 00:00:04]} 34. Rxd2 {[%clk 00:11:30]}
{[%emt 00:00:12]} Rxg6 {[%clk 00:07:33]} {[%emt 00:00:10]} 35. fxg6 {[%clk
00:11:34]} {[%emt 00:00:06]} Kf8 {[%clk 00:07:30]} {[%emt 00:00:11]} 36. Rdc2
{[%clk 00:11:40]} {[%emt 00:00:05]} b6 {[%clk 00:07:30]} {[%emt 00:00:11]} 37.
Rc8 {[%clk 00:11:49]} {[%emt 00:00:01]} Ke7 {[%clk 00:07:23]} {[%emt 00:00:16]}
38. Rxe8+ {[%clk 00:11:55]} {[%emt 00:00:03]} Kxe8 {[%clk 00:07:32]} {[%emt
00:00:02]} 39. Rc8+ {[%clk 00:12:03]} {[%emt 00:00:03]} Kd7 {[%clk 00:07:39]}
{[%emt 00:00:02]} 40. Ra8 {[%clk 00:12:11]} {[%emt 00:00:02]} a5 {[%clk
00:07:48]} {[%emt 00:00:02]} 41. Rg8 {[%clk 00:12:12]} {[%emt 00:00:07]} Ke6
{[%clk 00:07:51]} {[%emt 00:00:06]} 42. Rxg7 {[%clk 00:12:20]} {[%emt
00:00:04]} Kf5 {[%clk 00:07:59]} {[%emt 00:00:01]} 43. Rf7+ {[%clk 00:12:20]}
{[%emt 00:00:10]} Kxg6 {[%emt 00:00:07]} 44. Re7 {[%clk 00:12:27]} Kf5 {[%clk
00:08:12]} {[%emt 00:00:04]} 45. g3 {[%clk 00:12:35]} {[%emt 00:00:01]} b5
{[%clk 00:08:20]} {[%emt 00:00:02]} 46. b3 {[%clk 00:12:44]} {[%emt 00:00:01]}
a4 {[%clk 00:08:28]} {[%emt 00:00:03]} 47. bxa4 {[%clk 00:12:52]} {[%emt
00:00:01]} bxa4 {[%clk 00:08:37]} {[%emt 00:00:01]} 48. Rf7+ {[%clk 00:12:52]}
{[%emt 00:00:10]} Kg4 {[%clk 00:08:44]} {[%emt 00:00:02]} 49. f5 {[%clk
00:13:00]} {[%emt 00:00:02]} Kh5 {[%clk 00:08:52]} {[%emt 00:00:02]} 50. Rg7
{[%clk 00:13:08]} {[%emt 00:00:02]} Kh6 {[%clk 00:09:01]} {[%emt 00:00:01]} 51.
f6 {[%clk 00:13:17]} {[%emt 00:00:01]} Kh5 {[%clk 00:09:08]} {[%emt 00:00:03]}
52. f7 {[%clk 00:13:23]} {[%emt 00:00:04]} Kh6 {[%clk 00:09:13]} {[%emt
00:00:03]} 53. f8=Q {[%clk 00:13:18]} {[%emt 00:00:13]} Kh5 {[%clk 00:09:20]}
{[%emt 00:00:06]} 54. Qh8# {[%clk 00:13:26]} {[%emt 00:00:02]} 1-0